bitfinex/quotes_SOLUSD_20240621
["timestamp","ask_amount","ask_price","bid_price","bid_amount"]
[1718973362524,26.0787,131.61,131.54,6.0817]
[1718973362707,26.0787,131.61,131.55,0.17]
[1718973363193,26.0787,131.61,131.55,0.34]
[1718973363396,21.7149,131.62,131.55,6.4212]
[1718973363626,6.0786,131.61,131.55,0.34]
[1718973363799,6.0786,131.61,131.55,6.4213]
[1718973364000,6.0773,131.64,131.55,0.34]
[1718973364216,6.0777,131.63,131.55,26.4209]
[1718973364404,6.0783,131.62,131.55,26.4209]
[1718973364815,22.956,131.65,131.55,20.34]
[1718973365107,20.0,131.64,131.56,6.0806]
[1718973365306,6.0784,131.62,131.57,0.34]
[1718973365626,6.0784,131.62,131.57,0.17]
[1718973365927,20.0,131.64,131.56,6.2505]
[1718973365928,6.0777,131.63,131.56,6.2505]
[1718973366125,6.0777,131.63,131.57,6.2502]
[1718973366445,6.0764,131.66,131.58,0.17]
[1718973366729,23.031,131.68,131.58,0.17]
[1718973366911,6.0771,131.65,131.58,6.2498]
[1718973367127,6.0764,131.66,131.59,0.17]
[1718973367427,20.0,131.67,131.59,15.494]
[1718973367612,23.031,131.68,131.59,15.494]
[1718973367613,6.6333,131.68,131.6,0.17]
[1718973367817,6.0755,131.68,131.61,6.0783]
[1718973368002,6.0755,131.68,131.62,0.34]
[1718973368320,6.0755,131.68,131.62,6.418]
[1718973370108,27.8579,131.71,131.62,0.34]
[1718973370324,27.8579,131.71,131.63,0.17]
[1718973370510,27.8579,131.71,131.63,11.75600641]
[1718973370715,27.8579,131.71,131.63,28.29751241]
[1718973370906,27.8579,131.71,131.64,6.0769]
[1718973371226,12.0765,131.71,131.65,6.4166]
[1718973371420,6.0738,131.72,131.66,0.17]
[1718973371617,6.0738,131.72,131.66,6.2461]
[1718973371618,6.0735,131.72,131.66,6.2461]
[1718973371808,15.5582,131.74,131.67,0.17]
[1718973372006,15.5582,131.74,131.66,0.17]
[1718973372506,6.0735,131.72,131.66,11.58600641]
[1718973372719,6.0735,131.72,131.67,0.17]
[1718973373112,6.0735,131.72,131.66,0.34]
[1718973373322,6.0741,131.71,131.66,0.34]
[1718973373532,15.1827,131.73,131.66,0.34]
[1718973373723,6.0742,131.71,131.66,0.34]
[1718973374930,15.1827,131.73,131.66,6.4159]
[1718973374931,6.0731,131.73,131.66,6.4159]
[1718973375322,6.0744,131.7,131.66,0.34]
[1718973375522,6.074,131.71,131.66,0.34]
[1718973376433,30.7405,131.74,131.66,0.34]
[1718973376646,6.0756,131.68,131.62,21.7368]
[1718973377211,6.075,131.69,131.62,27.8148]
[1718973377744,6.075,131.69,131.63,6.0776]
[1718973378115,6.0741,131.71,131.65,6.0766]
[1718973378311,6.0744,131.7,131.64,6.077]
[1718973378510,6.0744,131.7,131.63,6.0773]
[1718973378730,15.1827,131.73,131.64,0.34]
[1718973378918,6.0747,131.7,131.63,6.4172]
[1718973379349,6.0749,131.69,131.63,0.34]
[1718973379718,6.0746,131.7,131.63,6.4173]
[1718973379917,6.0746,131.7,131.64,6.077]
[1718973380136,7.2998488,131.75,131.68,6.0752]
[1718973380341,6.9355488,131.75,131.69,6.4145]
[1718973380530,0.8633488,131.75,131.69,6.4145]
[1718973380735,6.0728,131.74,131.69,0.34]
[1718973380929,6.0725,131.74,131.69,0.34]
[1718973381127,6.0744,131.7,131.66,15.7379]
[1718973381433,6.0744,131.7,131.63,15.7379]
[1718973381827,6.0744,131.7,131.64,6.0769]
[1718973382032,6.0741,131.71,131.64,6.0769]
[1718973382334,15.1826,131.73,131.64,6.0768]
[1718973382564,6.0741,131.71,131.65,0.17]
[1718973382846,6.0741,131.71,131.65,0.34]
[1718973383523,6.0741,131.71,131.65,6.4164]
[1718973384027,16.0436488,131.75,131.65,0.34]
[1718973384231,6.0728,131.74,131.67,6.0755]
[1718973384433,6.9355488,131.75,131.68,6.4152]
[1718973384646,6.9355488,131.75,131.69,0.17]
[1718973385151,6.0726,131.74,131.69,0.17]
[1718973385951,6.9355488,131.75,131.69,6.2446]
[1718973386147,6.9355488,131.75,131.7,0.17]
[1718973386348,6.0726,131.74,131.7,0.17]
[1718973387231,6.9356488,131.75,131.7,0.17]
[1718973387937,0.8633488,131.75,131.7,0.17]
[1718973388137,0.8633488,131.75,131.7,6.2444]
[1718973388343,0.8633488,131.75,131.71,0.17]
[1718973388530,0.8633488,131.75,131.7,0.17]
[1718973389036,6.0728,131.74,131.7,0.17]
[1718973389248,0.8633488,131.75,131.69,15.997]
[1718973389548,6.0733,131.73,131.67,5.1255]
[1718973389856,6.0733,131.73,131.67,11.201]
[1718973390626,6.0733,131.73,131.68,0.17]
[1718973390943,6.0741,131.71,131.68,0.34]
[1718973391127,0.8633488,131.75,131.66,16.1618]
[1718973391322,6.0761,131.67,131.61,31.8103]
[1718973391556,6.0763,131.66,131.61,31.8103]
[1718973391781,6.0767,131.65,131.61,31.8103]
[1718973392058,6.0772,131.64,131.58,15.7335]
[1718973392225,30.3734,131.7,131.58,15.7335]
[1718973392425,6.0784,131.62,131.58,15.7335]
[1718973392634,6.0784,131.62,131.55,6.0811]
[1718973393021,6.0784,131.62,131.55,26.0811]
[1718973393551,6.0784,131.62,131.55,6.0811]
[1718973393755,21.437,131.64,131.54,35.0105]
[1718973393960,6.0793,131.6,131.54,35.0105]
[1718973394163,6.0793,131.6,131.54,15.0105]
[1718973394332,15.1954,131.62,131.54,15.0105]
[1718973395234,15.1954,131.62,131.55,0.34]
[1718973395437,20.0,131.63,131.55,0.34]
[1718973395630,6.0788,131.61,131.55,0.34]
[1718973395832,6.0781,131.62,131.55,6.4213]
[1718973396139,6.0786,131.61,131.55,0.34]
[1718973396348,6.0782,131.62,131.55,6.4212]
[1718973396548,6.0786,131.61,131.55,6.4212]
[1718973396747,6.0786,131.61,131.55,0.34]
[1718973397351,6.0783,131.62,131.55,6.4212]
[1718973398152,6.0786,131.61,131.55,6.4212]
[1718973398634,6.0786,131.61,131.55,0.34]
[1718973399057,6.0791,131.6,131.55,0.34]
[1718973399854,6.0787,131.61,131.55,0.34]
[1718973400355,35.1951,131.63,131.55,0.34]
[1718973400941,6.0792,131.6,131.55,0.34]
[1718973402141,6.079,131.6,131.55,0.34]
[1718973405568,6.0798,131.59,131.55,0.34]
[1718973405752,15.1965,131.61,131.55,0.34]
[1718973406450,6.08,131.58,131.55,0.34]
[1718973406655,6.0797,131.59,131.55,0.34]
[1718973407560,6.0791,131.6,131.55,0.34]
[1718973407760,6.0798,131.59,131.54,15.0105]
[1718973407967,20.0,131.63,131.54,15.0105]
[1718973408641,35.1949,131.63,131.54,15.0105]
[1718973408841,6.0792,131.6,131.54,15.0105]
[1718973409244,6.0792,131.6,131.55,0.34]
[1718973409753,35.1949,131.63,131.55,0.34]
[1718973409952,6.0792,131.6,131.55,0.34]
[1718973410357,6.0787,131.61,131.55,0.34]
[1718973410970,6.0783,131.62,131.55,6.4212]
[1718973411354,6.0787,131.61,131.55,6.4212]
[1718973411564,6.0787,131.61,131.55,0.34]
[1718973411765,6.0787,131.61,131.55,6.4212]
[1718973412077,26.0778,131.63,131.55,0.34]
[1718973412256,15.1918,131.65,131.55,0.34]
[1718973412452,15.1918,131.65,131.55,6.4211]
[1718973412647,6.0778,131.63,131.57,6.0803]
[1718973412854,6.0778,131.63,131.55,0.34]
[1718973412855,6.0771,131.64,131.58,6.4198]
[1718973413056,6.0771,131.64,131.58,6.2498]
[1718973413356,6.0771,131.64,131.59,0.17]
[1718973413561,6.0785,131.62,131.59,0.17]
[1718973414267,6.0787,131.61,131.58,0.17]
[1718973414851,6.0791,131.6,131.54,21.092]
[1718973415052,59.06278946,131.67,131.54,15.0105]
[1718973415254,6.079,131.6,131.54,21.092]
[1718973416272,6.0795,131.59,131.55,0.17]
[1718973416479,6.0795,131.59,131.55,0.34]
[1718973416777,6.0797,131.59,131.55,0.17]
[1718973417754,6.0807,131.57,131.54,15.0105]
[1718973417963,6.0813,131.55,131.51,16.6175]
[1718973418461,6.081,131.56,131.51,16.6175]
[1718973418770,6.0806,131.57,131.51,22.7004]
[1718973419252,6.0801,131.58,131.52,6.4226]
[1718973419774,6.0805,131.57,131.52,0.34]
[1718973420156,6.0804,131.57,131.52,0.34]
[1718973420459,6.0804,131.57,131.52,0.17]
[1718973420650,6.0808,131.56,131.52,0.17]
[1718973421692,15.1999,131.58,131.52,0.34]
[1718973422589,15.1977,131.6,131.52,0.34]
[1718973422759,20.0,131.59,131.52,0.34]
[1718973423157,6.0819,131.54,131.51,16.6175]
[1718973423567,6.0819,131.54,131.48,6.0842]
[1718973423886,6.083,131.52,131.47,16.6175]
[1718973424266,6.083,131.52,131.46,11.2108]
[1718973424469,6.0838,131.5,131.43,5.1255]
[1718973424680,6.0838,131.5,131.43,11.2121]
[1718973424878,6.0838,131.5,131.44,6.0863]
[1718973426574,21.8402,131.55,131.45,6.0858]
[1718973426908,6.0841,131.49,131.45,0.17]
[1718973427067,6.0841,131.49,131.44,0.34]
[1718973427267,6.0841,131.49,131.43,20.9492]
[1718973427470,20.0,131.54,131.43,20.9492]
[1718973427471,15.2092,131.5,131.43,20.9492]
[1718973427664,15.2092,131.5,131.43,15.8237]
[1718973427871,15.2068,131.52,131.43,15.8237]
[1718973428094,6.0843,131.49,131.43,15.8237]
[1718973428478,6.0843,131.49,131.43,21.9104]
[1718973428882,15.209,131.51,131.43,15.8237]
[1718973429201,6.0848,131.48,131.43,15.8237]
[1718973429499,6.0839,131.5,131.43,21.9101]
[1718973429696,6.0827,131.52,131.46,6.0853]
[1718973429877,6.0832,131.51,131.45,6.0857]
[1718973430203,6.0832,131.51,131.46,0.17]
[1718973430374,20.0,131.54,131.43,15.8237]
[1718973430571,20.0,131.54,131.44,0.34]
[1718973430801,6.237,131.55,131.47,5.1255]
[1718973430982,15.0197,131.58,131.48,32.135]
[1718973431298,6.0814,131.55,131.49,6.0839]
[1718973431473,15.2012,131.57,131.48,16.9242]
[1718973431676,15.0197,131.58,131.48,16.9242]
[1718973431890,30.2206,131.58,131.48,16.9242]
[1718973432073,6.0821,131.54,131.48,16.9242]
[1718973432268,15.0197,131.58,131.48,16.9242]
[1718973432269,15.2036,131.55,131.48,16.9242]
[1718973432572,6.0837,131.5,131.48,16.5842]
[1718973432972,6.0842,131.49,131.44,16.1862]
[1718973433582,6.0838,131.5,131.44,22.2725]
[1718973433789,6.0833,131.51,131.45,6.0858]
[1718973433974,6.0836,131.5,131.44,22.2724]
[1718973434177,6.0836,131.5,131.45,0.17]
[1718973434476,6.0833,131.51,131.45,0.34]
[1718973434679,6.0837,131.5,131.45,0.34]
[1718973435296,6.0848,131.48,131.44,16.1862]
[1718973435668,6.0855,131.46,131.42,11.42998507]
[1718973435879,6.0852,131.47,131.41,16.4784]
[1718973436400,6.0852,131.47,131.41,33.99608507]
[1718973436602,15.2082,131.51,131.41,27.90838507]
[1718973436897,20.0,131.5,131.42,11.60198817]
[1718973437080,6.0848,131.48,131.43,0.17]
[1718973437291,20.0,131.5,131.41,33.99798817]
[1718973437488,20.0,131.5,131.42,6.0871]
[1718973437798,6.0846,131.48,131.42,17.51908817]
[1718973438010,21.8453,131.53,131.42,11.43198817]
[1718973438200,45.4396,131.56,131.44,11.43198817]
[1718973438409,6.0834,131.51,131.45,22.0882]
[1718973438591,6.0834,131.51,131.46,0.34]
[1718973438790,15.0346,131.56,131.46,0.34]
[1718973438791,15.2066,131.53,131.46,0.34]
[1718973438994,15.2037,131.55,131.46,0.34]
[1718973439293,6.0831,131.52,131.46,6.4253]
[1718973439598,6.0831,131.52,131.46,5.4655]
[1718973439899,15.2054,131.54,131.46,5.4655]
[1718973440090,6.0837,131.5,131.46,5.4655]
[1718973440295,45.4394,131.56,131.46,5.4655]
[1718973440296,30.237,131.56,131.46,5.4655]
[1718973440488,6.0827,131.52,131.46,11.5507]
[1718973442207,6.0827,131.52,131.46,5.4655]
[1718973442714,6.0827,131.52,131.46,11.5509]
[1718973444490,6.0824,131.53,131.47,6.085]
[1718973444689,6.0824,131.53,131.48,0.34]
[1718973445422,45.4394,131.56,131.46,5.1255]
[1718973445611,45.4394,131.56,131.45,16.0023]
[1718973445612,15.2081,131.51,131.45,16.0023]
[1718973445924,15.2089,131.51,131.43,5.1255]
[1718973446092,6.0848,131.48,131.43,5.1255]
[1718973446708,15.2089,131.51,131.43,11.2123]
[1718973446709,6.0843,131.49,131.43,11.2123]
[1718973446902,15.2057,131.53,131.43,5.1255]
[1718973447090,6.0838,131.5,131.44,6.0862]
[1718973447290,6.0838,131.5,131.44,6.4262]
[1718973447522,6.0841,131.49,131.44,0.34]
[1718973447692,6.0838,131.5,131.44,6.4264]
[1718973449788,15.2057,131.53,131.45,6.0859]
[1718973449789,6.0833,131.51,131.45,6.0859]
[1718973449993,6.0833,131.51,131.46,0.34]
[1718973450203,6.0836,131.5,131.46,0.34]
[1718973450414,6.0841,131.49,131.46,0.34]
[1718973450688,6.0821,131.54,131.48,6.0845]
[1718973450893,15.0346,131.56,131.49,0.17]
[1718973451091,6.0822,131.53,131.49,0.34]
[1718973451319,6.0823,131.53,131.49,0.34]
[1718973451502,6.0829,131.52,131.49,0.34]
[1718973452124,6.0836,131.51,131.49,0.17]
[1718973452417,6.0836,131.51,131.48,16.0913]
[1718973452635,45.44,131.56,131.45,16.0002]
[1718973452914,6.085,131.47,131.45,16.0002]
[1718973453124,15.2087,131.51,131.45,16.0002]
[1718973453125,6.0848,131.48,131.45,16.0002]
[1718973453710,6.085,131.47,131.45,16.0002]
[1718973453916,6.085,131.47,131.43,5.1255]
[1718973454633,6.0847,131.48,131.43,5.1255]
[1718973454819,6.0843,131.49,131.43,5.1255]
[1718973455023,15.2099,131.5,131.43,5.1255]
[1718973455327,15.2099,131.5,131.42,16.0002]
[1718973455328,6.0853,131.47,131.42,16.1702]
[1718973455514,6.0847,131.48,131.43,0.17]
[1718973455913,6.0852,131.47,131.43,0.17]
[1718973456413,15.2099,131.5,131.42,16.0002]
[1718973456414,6.0858,131.46,131.42,16.0002]
[1718973457332,6.0861,131.45,131.42,16.0002]
[1718973457651,6.0861,131.45,131.4,5.1255]
[1718973458636,15.2112,131.49,131.41,0.17]
[1718973458637,6.0844,131.49,131.41,0.17]
[1718973458813,30.4119,131.53,131.41,0.34]
[1718973459135,6.0852,131.47,131.41,0.34]
[1718973459307,15.2069,131.52,131.43,6.0868]
[1718973459654,6.0837,131.5,131.45,15.044]
[1718973460011,22.2345,131.49,131.41,11.4339203]
[1718973460228,6.088,131.41,131.36,5.1255]
[1718973460437,6.0883,131.4,131.36,5.1255]
[1718973461118,6.0879,131.41,131.36,5.1255]
[1718973462339,6.0888,131.39,131.36,5.1255]
[1718973462520,6.0885,131.4,131.36,5.1255]
[1718973462725,6.0888,131.39,131.36,5.1255]
[1718973463043,6.0885,131.4,131.35,15.044]
[1718973463429,6.0885,131.4,131.36,0.17]
[1718973463939,6.0885,131.4,131.36,0.34]
[1718973464742,6.088,131.41,131.36,0.34]
[1718973465847,22.0983,131.43,131.35,15.044]
[1718973466039,22.0983,131.43,131.33,5.1255]
[1718973466040,6.0897,131.37,131.33,5.1255]
[1718973466918,6.0901,131.36,131.32,15.3998]
[1718973467123,52.5335,131.43,131.32,15.3998]
[1718973467324,6.0906,131.35,131.32,15.3998]
[1718973467542,6.0903,131.36,131.32,15.3998]
[1718973468923,15.2241,131.38,131.32,15.3998]
[1718973469441,6.0913,131.34,131.32,15.3998]
[1718973469945,6.0907,131.35,131.32,15.3998]
[1718973470645,6.0906,131.35,131.32,15.3998]
[1718973470826,6.0906,131.35,131.29,26.5575]
[1718973471028,6.0906,131.35,131.3,0.34]
[1718973471221,15.2241,131.38,131.3,0.34]
[1718973471222,6.091,131.34,131.3,0.34]
[1718973471445,15.2253,131.36,131.29,20.4642]
[1718973471630,6.092,131.32,131.29,15.3387]
[1718973472431,6.0917,131.33,131.29,15.3387]
[1718973472945,6.092,131.32,131.29,15.3387]
[1718973473344,6.0916,131.33,131.29,15.3387]
[1718973473945,6.092,131.32,131.29,15.3387]
[1718973474145,6.0917,131.33,131.29,15.3387]
[1718973474851,6.0921,131.32,131.29,15.3387]
[1718973475233,6.0916,131.33,131.29,15.3387]
[1718973475433,6.0919,131.32,131.29,15.3387]
[1718973475635,15.2275,131.35,131.29,15.3387]
[1718973475838,6.0923,131.32,131.29,15.3387]
[1718973476128,6.0927,131.31,131.28,1.0333488]
[1718973476332,6.093,131.3,131.28,0.8633488]
[1718973476553,6.0926,131.31,131.28,0.8633488]
[1718973478228,15.229,131.33,131.28,0.8633488]
[1718973478229,6.0929,131.3,131.28,0.8633488]
[1718973478435,6.0926,131.31,131.28,0.8633488]
[1718973478947,6.0931,131.3,131.28,0.8633488]
[1718973479152,6.0933,131.29,131.28,0.8633488]
[1718973479349,6.0931,131.3,131.28,0.8633488]
[1718973481639,6.0926,131.31,131.28,0.8633488]
[1718973481944,6.0917,131.33,131.28,0.8633488]
[1718973482131,15.2267,131.35,131.28,0.8633488]
[1718973482132,6.0925,131.31,131.28,0.8633488]
[1718973482646,6.0921,131.32,131.28,0.8633488]
[1718973483033,6.0913,131.34,131.28,0.8633488]
[1718973483261,6.0906,131.35,131.29,6.4332]
[1718973483558,6.0913,131.34,131.29,0.34]
[1718973484061,6.0915,131.33,131.29,0.34]
[1718973484865,6.0901,131.36,131.31,16.5707]
[1718973485162,6.0907,131.35,131.31,16.5707]
[1718973485867,15.224,131.38,131.31,16.5707]
[1718973486064,6.091,131.35,131.31,16.5707]
[1718973487057,6.0903,131.36,131.31,16.5707]
[1718973487973,6.089,131.39,131.32,0.17]
[1718973488150,255.1,131.4,131.32,0.34]
[1718973488461,6.0897,131.37,131.32,0.34]
[1718973488674,6.0892,131.38,131.32,6.4318]
[1718973488969,6.0894,131.38,131.32,0.34]
[1718973489376,6.0894,131.38,131.32,6.4319]
[1718973489868,6.0889,131.39,131.33,6.0915]
[1718973490179,6.0883,131.4,131.34,6.4309]
[1718973490348,31.4076,131.43,131.35,0.17]
[1718973490349,6.0888,131.39,131.35,0.17]
[1718973490945,46.6252,131.43,131.31,21.6962]
[1718973491191,6.091,131.34,131.33,6.0912]
[1718973491484,6.091,131.34,131.31,21.6962]
[1718973491654,6.0909,131.35,131.31,21.6962]
[1718973492063,45.0,131.42,131.31,21.6962]
[1718973492064,6.0903,131.36,131.31,21.6962]
[1718973492444,15.2222,131.39,131.31,21.6962]
[1718973492765,6.0893,131.38,131.32,6.4319]
[1718973493062,6.0889,131.39,131.33,6.0914]
[1718973493366,6.0889,131.39,131.34,0.34]
[1718973494376,6.0885,131.4,131.34,6.431]
[1718973494571,6.0887,131.39,131.34,0.34]
[1718973494764,6.0892,131.38,131.34,0.34]
[1718973494958,6.0885,131.4,131.34,6.091]
[1718973495164,6.0885,131.4,131.33,0.34]
[1718973495165,6.0875,131.42,131.36,6.09]
[1718973495570,6.0878,131.41,131.37,15.5497]
[1718973495876,6.0875,131.42,131.38,0.17]
[1718973496383,6.0871,131.43,131.38,0.17]
[1718973496552,6.0867,131.44,131.38,0.17]
[1718973496871,6.0867,131.44,131.38,6.2589]
[1718973497187,6.0871,131.43,131.39,0.17]
[1718973497348,6.0877,131.42,131.38,0.17]
[1718973497540,6.0877,131.42,131.38,0.34]
[1718973497841,15.2149,131.45,131.38,0.34]
[1718973498560,6.0866,131.44,131.38,6.4291]
[1718973499063,6.0869,131.43,131.38,0.34]
[1718973500265,6.0866,131.44,131.38,0.34]
[1718973500463,6.0866,131.44,131.38,6.429]
[1718973500649,6.0869,131.43,131.38,0.34]
[1718973501063,6.0874,131.42,131.38,0.34]
[1718973501465,6.088,131.41,131.37,15.5497]
[1718973502561,6.0875,131.42,131.37,15.5497]
[1718973503372,6.0869,131.43,131.37,21.6392]
[1718973503548,6.0865,131.44,131.38,6.4291]
[1718973505148,6.0859,131.45,131.39,6.0884]
[1718973505392,6.0859,131.45,131.4,0.34]
[1718973506068,6.0864,131.44,131.4,0.34]
[1718973506266,6.0864,131.44,131.39,0.34]
[1718973506573,6.0869,131.43,131.39,0.34]
[1718973506767,6.0869,131.43,131.38,0.34]
[1718973506948,6.0878,131.41,131.38,0.34]
[1718973507154,6.0875,131.42,131.39,0.17]
[1718973507356,6.0875,131.42,131.38,0.34]
[1718973507588,15.2141,131.46,131.38,0.34]
[1718973507755,6.087,131.43,131.38,0.34]
[1718973508572,15.2141,131.46,131.38,0.34]
[1718973508870,6.0871,131.43,131.38,0.34]
[1718973509260,6.0874,131.42,131.38,0.34]
[1718973509877,6.0871,131.43,131.38,0.34]
[1718973511476,261.67174864,131.49,131.38,0.34]
[1718973511657,20.0,131.48,131.38,0.34]
[1718973511971,6.0866,131.44,131.38,6.4289]
[1718973512371,6.0864,131.45,131.39,6.0886]
[1718973512671,6.0867,131.44,131.4,0.34]
[1718973512855,6.0867,131.44,131.4,0.17]
[1718973513259,6.0869,131.43,131.39,0.17]
[1718973513458,6.0866,131.44,131.38,6.4291]
[1718973515474,6.0869,131.43,131.38,0.34]
[1718973515858,6.0865,131.44,131.38,6.4291]
[1718973517879,15.2137,131.47,131.39,6.0887]
[1718973517880,6.0861,131.45,131.39,6.0887]
[1718973518061,6.0861,131.45,131.4,0.34]
[1718973518377,6.0864,131.44,131.4,0.34]
[1718973518975,6.0864,131.44,131.39,0.34]
[1718973523957,6.0866,131.44,131.39,0.34]
[1718973524459,15.2145,131.46,131.37,15.5497]
[1718973524674,6.0874,131.42,131.37,15.5497]
[1718973525486,6.0871,131.43,131.37,21.6393]
[1718973525861,6.0879,131.41,131.38,0.17]
[1718973526078,15.2162,131.44,131.37,15.5497]
[1718973526389,6.0879,131.41,131.37,15.5497]
[1718973526999,6.0875,131.42,131.37,15.5497]
[1718973528389,15.2162,131.44,131.37,15.5497]
[1718973528567,37.4209,131.46,131.37,15.5497]
[1718973528770,6.0864,131.44,131.38,0.34]
[1718973529692,6.0864,131.44,131.38,6.4291]
[1718973530194,6.0868,131.43,131.38,0.34]
[1718973532582,6.0874,131.42,131.38,0.34]
[1718973533288,6.0874,131.42,131.38,0.17]
[1718973533666,6.087,131.43,131.38,0.34]
[1718973533986,6.0865,131.44,131.38,6.4291]
[1718973534174,6.0871,131.43,131.38,0.34]
[1718973535687,15.213,131.47,131.38,0.34]
[1718973535888,6.0864,131.44,131.38,6.4289]
[1718973536193,6.0864,131.44,131.39,6.0887]
[1718973536483,6.0864,131.44,131.4,0.34]
[1718973536692,6.0864,131.44,131.4,0.17]
[1718973536865,6.0864,131.44,131.39,0.17]
[1718973537065,6.0864,131.44,131.39,0.34]
[1718973537980,6.0869,131.43,131.39,0.34]
[1718973538185,6.0869,131.43,131.38,0.34]
[1718973538991,6.0866,131.44,131.38,6.4291]
[1718973539490,6.0868,131.43,131.38,6.4291]
[1718973539868,6.0868,131.43,131.38,0.34]
[1718973540366,6.087,131.43,131.38,0.34]
[1718973540563,277.3069,131.49,131.38,0.34]
[1718973540799,6.0852,131.47,131.41,6.0875]
[1718973540971,277.3069,131.49,131.4,0.34]
[1718973541290,277.3069,131.49,131.37,15.5497]
[1718973541291,307.7281,131.49,131.37,15.5497]
[1718973541482,6.0885,131.4,131.37,15.5497]
[1718973541875,15.218,131.43,131.37,15.5497]
[1718973542068,6.0879,131.41,131.37,15.5497]
[1718973542279,6.0883,131.4,131.37,15.5497]
[1718973542864,15.218,131.43,131.37,15.5497]
[1718973543172,6.088,131.41,131.37,15.5497]
[1718973543367,6.0875,131.42,131.37,15.5497]
[1718973543575,15.2152,131.45,131.37,21.6393]
[1718973543790,29.29,131.47,131.37,15.5497]
[1718973544093,6.0862,131.45,131.39,6.0885]
[1718973544279,6.0853,131.47,131.41,6.0875]
[1718973544478,277.3069,131.49,131.4,0.34]
[1718973544675,6.0853,131.47,131.41,6.0875]
[1718973545490,6.0853,131.47,131.4,0.34]
[1718973545491,37.5145,131.52,131.43,9.74]
[1718973545795,6.0846,131.48,131.44,9.74]
[1718973546099,6.0846,131.48,131.45,9.74]
[1718973546884,6.085,131.47,131.44,9.74]
[1718973547174,6.085,131.47,131.43,9.74]
[1718973547477,6.0847,131.48,131.42,21.6058]
[1718973547794,6.0847,131.48,131.43,0.34]
[1718973547998,28.47863003,131.52,131.43,6.4268]
[1718973548295,6.0846,131.48,131.43,0.34]
[1718973549872,15.2047,131.54,131.43,0.34]
[1718973550068,307.5121,131.55,131.44,6.0862]
[1718973550069,6.0839,131.5,131.44,6.0862]
[1718973550370,6.0833,131.51,131.46,6.0854]
[1718973550694,6.0833,131.51,131.45,6.4258]
[1718973551489,313.48536859,131.55,131.42,50.4956]
[1718973551684,6.085,131.47,131.43,0.34]
[1718973551991,313.48536859,131.55,131.42,15.1786]
[1718973551992,15.2101,131.5,131.42,15.1786]
[1718973552189,6.0851,131.47,131.42,15.1786]
[1718973552373,6.0847,131.48,131.42,21.2658]
[1718973552580,6.085,131.47,131.42,15.1786]
[1718973552774,6.0846,131.48,131.42,21.2656]
[1718973553003,6.0836,131.5,131.44,6.0861]
[1718973553300,6.0846,131.48,131.43,0.17]
[1718973553473,6.0842,131.49,131.43,6.4267]
[1718973554491,6.0846,131.48,131.43,0.34]
[1718973555228,6.0846,131.48,131.43,6.4268]
[1718973555400,6.0843,131.49,131.43,6.4268]
[1718973556890,15.2087,131.51,131.43,0.34]
[1718973556891,6.0847,131.48,131.43,0.34]
[1718973557095,6.0853,131.47,131.43,0.34]